bitfinex-derivatives/quotes_ETHF0:USTF0_20250102
["timestamp","ask_amount","ask_price","bid_price","bid_amount"]
[1735801086854,0.4317,3409.8,3409.7,4.39734055]
[1735801087151,0.4317,3409.8,3409.7,4.49466165]
[1735801087554,0.4317,3409.8,3409.7,4.49466469]
[1735801090046,0.4317,3409.8,3409.7,4.49472413]
[1735801093655,5.76948146,3410.2,3409.7,4.20100413]
[1735801093855,5.76948146,3410.2,3410.1,1.32897966]
[1735801094056,5.76948146,3410.2,3410.1,1.42636324]
[1735801094256,5.76948146,3410.3,3410.1,1.13266324]
[1735801094458,5.76948146,3410.3,3410.2,0.39107358]
[1735801094654,6.06316146,3410.3,3410.2,0.55660413]
[1735801094962,5.76948146,3410.3,3410.2,0.85029413]
[1735801096255,5.76948146,3410.3,3410.2,0.94763639]
[1735801096654,5.76948146,3410.3,3410.2,0.9476201]
[1735801097157,6.06316146,3410.3,3410.2,0.9476201]
[1735801097359,0.29368,3410.3,3410.2,0.9476201]
[1735801098059,7.41435146,3410.4,3410.3,0.29368]
[1735801098259,7.41435146,3410.4,3410.3,2.92818021]
[1735801098849,7.41435146,3410.4,3410.3,2.63450021]
[1735801100054,7.41435146,3410.4,3410.3,2.92818021]
[1735801100361,7.41435146,3410.4,3410.3,0.45922055]
[1735801100659,7.41435146,3410.4,3410.3,2.63450021]
[1735801100861,7.41435146,3410.4,3410.3,2.92818021]
[1735801101264,7.12068146,3410.4,3410.3,2.92818021]
[1735801101657,1.3512,3410.4,3410.3,2.92818021]
[1735801102468,1.3512,3410.4,3410.3,3.02548026]
[1735801103562,5.96824895,3410.4,3410.3,3.02548026]
[1735801104560,5.96824895,3410.4,3410.3,2.92818021]
[1735801105157,6.26191895,3410.4,3410.3,2.63450021]
[1735801105871,1.64487,3410.4,3410.3,2.63450021]
[1735801106168,1.64487,3410.4,3410.3,2.92818021]
[1735801106667,1.3512,3410.4,3410.3,2.92818021]
[1735801108071,1.3512,3410.4,3410.3,3.02544984]
[1735801108365,1.3512,3410.4,3410.3,2.92818021]
[1735801109070,1.3512,3410.4,3410.3,3.02544661]
[1735801109071,5.969102,3410.4,3410.3,3.02544661]
[1735801110375,1.3512,3410.4,3410.3,3.02544661]
[1735801113268,1.3512,3410.4,3410.3,2.92818021]
[1735801113470,1.3512,3410.4,3410.3,3.02511354]
[1735801115174,1.3512,3410.4,3410.3,3.02509716]
[1735801115175,5.96774804,3410.4,3410.3,3.02509716]
[1735801117279,1.3512,3410.4,3410.3,3.02509716]
[1735801117571,1.3512,3410.4,3410.3,3.0251]
[1735801117771,1.3512,3410.4,3410.3,3.02509886]
[1735801121778,4.61654804,3410.6,3410.5,0.29363]
[1735801121977,4.61654804,3410.6,3410.5,5.09284886]
[1735801122980,4.61654804,3410.6,3410.5,5.43871867]
[1735801123179,4.61654804,3410.7,3410.5,5.14508867]
[1735801123482,5.76948146,3410.9,3410.8,0.2936]
[1735801123679,5.76948146,3410.9,3410.8,2.80694778]
[1735801123874,5.76948146,3410.9,3410.8,44.06587446]
[1735801124371,5.76948146,3410.9,3410.8,44.06584881]
[1735801124575,6.06300146,3411.8,3410.8,54.85491758]
[1735801124775,6.06300146,3411.8,3411.7,4.24307966]
[1735801125083,6.06300146,3411.8,3411.7,5.84230021]
[1735801125583,0.29352,3411.8,3411.7,5.84230021]
[1735801125783,5.76948146,3412.1,3411.7,5.84230021]
[1735801125984,1.3302,3412.0,3411.7,4.80702055]
[1735801126185,1.3302,3412.0,3411.8,0.29351]
[1735801126483,1.3302,3412.0,3411.9,0.29351]
[1735801126686,1.3302,3412.0,3411.9,0.75273055]
[1735801126982,8.75348146,3412.4,3411.9,1.78801021]
[1735801127182,0.8742,3412.3,3412.2,0.29348]
[1735801127372,0.8742,3412.3,3412.2,3.50128]
[1735801127889,0.8742,3412.3,3412.2,3.96050055]
[1735801129692,0.8742,3412.3,3412.2,3.66702055]
[1735801129895,1.16768,3412.3,3412.2,3.66702055]
[1735801130090,1.16768,3412.3,3412.2,3.2078]
[1735801130293,0.29354,3411.6,3411.5,1.14]
[1735801130499,0.29353,3411.7,3411.5,1.14]
[1735801130892,0.29354,3411.6,3411.5,1.14]
[1735801131499,3.2078,3411.9,3411.5,1.14]
[1735801131802,0.29353,3411.7,3411.5,1.14]
[1735801132104,0.29354,3411.6,3411.5,1.14]
[1735801143600,0.29354,3411.6,3411.5,1.5989906]
[1735801144301,0.29354,3411.6,3411.5,1.14]
[1735801145407,0.29354,3411.6,3411.5,1.59899503]
[1735801148207,0.29354,3411.6,3411.5,2.63224728]
[1735801150408,0.29354,3411.6,3411.5,2.92579728]
[1735801151713,3.27753,3411.7,3411.6,0.29354]
[1735801152011,3.27753,3411.7,3411.6,0.75253503]
[1735801152211,3.27753,3411.7,3411.6,1.17363503]
[1735801152512,3.27753,3411.7,3411.6,1.27039525]
[1735801152815,3.27753,3411.7,3411.6,1.27039754]
[1735801153507,0.29353,3411.7,3411.6,1.27035847]
[1735801153710,0.29353,3411.7,3411.6,1.17359596]
[1735801154904,0.29353,3411.7,3411.6,1.27037302]
[1735801155310,0.29353,3411.7,3411.6,1.17359596]
[1735801155612,0.29353,3411.7,3411.6,1.27036404]
[1735801155808,0.29353,3411.7,3411.6,1.17359596]
[1735801157417,0.29353,3411.7,3411.6,1.27037826]
[1735801158211,2.984,3411.9,3411.8,0.29352]
[1735801158413,3.27751,3411.9,3411.8,1.88251051]
[1735801159111,3.27751,3411.9,3411.8,1.58899051]
[1735801159417,0.29351,3411.9,3411.8,1.88249051]
[1735801159616,2.984,3412.1,3411.8,1.58899051]
[1735801159812,2.984,3412.1,3412.0,1.32673225]
[1735801160014,2.984,3412.1,3412.0,1.42351455]
[1735801160213,2.984,3412.1,3412.0,2.31117051]
[1735801160816,2.984,3412.1,3412.0,2.31120312]
[1735801161520,2.984,3412.1,3412.0,2.67160302]
[1735801162622,2.984,3412.1,3412.0,2.6714668]
[1735801163720,2.984,3412.1,3412.0,5.8792668]
[1735801163922,3.50122,3412.6,3412.5,0.29343]
[1735801164226,3.50122,3412.6,3412.5,1.88232949]
[1735801165015,3.50122,3412.6,3412.5,2.74972949]
[1735801165216,3.2078,3412.6,3412.5,2.74972949]
[1735801166225,3.2078,3412.6,3412.5,1.71647724]
[1735801166727,3.50122,3412.6,3412.5,1.61978596]
[1735801166925,3.50122,3412.6,3412.5,1.32635596]
[1735801167125,3.50122,3412.6,3412.5,1.42293008]
[1735801167529,3.50122,3412.6,3412.5,1.61978596]
[1735801168921,0.29342,3412.6,3412.5,1.61978596]
[1735801171725,0.29342,3412.6,3412.5,1.16083]
[1735801171918,0.29342,3412.6,3412.5,1.32622379]
[1735801179226,0.29342,3412.6,3412.5,1.61965379]
[1735801179433,0.29342,3412.6,3412.5,1.71220527]
[1735801181231,0.29342,3412.6,3412.5,1.71222744]
[1735801181430,0.29342,3412.6,3412.5,4.92002744]
[1735801181631,0.29342,3412.6,3412.5,4.62659744]
[1735801181833,0.29342,3412.6,3412.5,4.62661804]
[1735801182639,0.29342,3412.6,3412.5,0.45882379]
[1735801186243,4.89661982,3412.6,3412.5,0.45882379]
[1735801186745,4.89661982,3412.6,3412.5,0.55155237]
[1735801187044,5.34061982,3412.6,3412.5,0.55155237]
[1735801187245,5.34061982,3412.6,3412.5,0.55155116]
[1735801187748,5.34061982,3412.6,3412.5,0.55159774]
[1735801187944,5.78131982,3412.6,3412.5,0.55159774]
[1735801188145,5.78131982,3412.6,3412.5,0.45882379]
[1735801188346,6.81405356,3412.6,3412.5,0.45882379]
[1735801189350,7.9803352,3412.6,3412.5,0.45882379]
[1735801190542,7.9803352,3412.6,3412.5,0.55168403]
[1735801190751,7.9803352,3412.6,3412.5,0.55167764]
[1735801190940,7.9803352,3412.6,3412.5,0.55167651]
[1735801191343,7.9803352,3412.6,3412.5,0.55167667]
[1735801192349,10.9643352,3412.6,3412.5,0.55167667]
[1735801192550,10.9643352,3412.6,3412.5,0.55167818]
[1735801193452,5.19485374,3412.6,3412.5,0.45882379]
[1735801193650,5.19485374,3412.6,3412.5,0.55169236]
[1735801194350,5.19485374,3412.6,3412.5,0.45882379]
[1735801195252,10.9643352,3412.6,3412.5,0.45882379]
[1735801197454,5.19485374,3412.6,3412.5,0.45882379]
[1735801200555,5.19485374,3412.6,3412.5,0.55171539]
[1735801201053,5.19485374,3412.6,3412.5,0.91231813]
[1735801201550,5.19485374,3412.6,3412.5,0.45882379]
[1735801201761,5.19485374,3412.6,3412.5,0.55171317]
[1735801202054,5.19485374,3412.6,3412.5,0.91231703]
[1735801202960,5.19485374,3412.6,3412.5,2.2338254]
[1735801203348,4.75415374,3412.6,3412.5,2.38941548]
[1735801204056,4.75415374,3412.6,3412.5,2.8468293]
[1735801204259,11.67666742,3412.6,3412.5,2.8468293]
[1735801204453,8.69266742,3412.6,3412.5,2.8468293]
[1735801204758,8.69266742,3412.6,3412.5,2.38940741]
[1735801205153,8.69266742,3412.6,3412.5,2.24459702]
[1735801205360,8.69266742,3412.6,3412.5,2.40015996]
[1735801207162,8.69266742,3412.6,3412.5,1.19298704]
[1735801207360,1.77015374,3412.6,3412.5,1.81283451]
[1735801207558,1.77015374,3412.6,3412.5,2.4001662]
[1735801207761,1.77015374,3412.6,3412.5,2.40016482]
[1735801208960,1.77015374,3412.6,3412.5,1.07867123]
[1735801209761,8.69895382,3412.6,3412.5,1.07867123]
[1735801210362,11.68295382,3412.6,3412.5,1.07867123]
[1735801210861,11.68295382,3412.6,3412.5,1.07616125]
[1735801212565,11.68295382,3412.6,3412.5,1.65949128]
[1735801213062,11.68295382,3412.6,3412.5,3.31134872]
[1735801213563,11.68295382,3412.6,3412.5,4.04550718]
[1735801213764,10.20622008,3412.6,3412.5,4.04550718]
[1735801213968,10.20622008,3412.6,3412.5,4.63751246]
[1735801214157,9.25211704,3412.6,3412.5,6.92761388]
[1735801214359,2.984,3412.6,3412.5,6.92761388]
[1735801214962,2.2836,3412.6,3412.5,6.92761388]
[1735801215166,4.03189447,3412.7,3412.6,0.29342]
[1735801215360,3.32909447,3412.7,3412.6,6.87362123]
[1735801215665,3.32909447,3412.7,3412.6,48.13244502]
[1735801216060,3.32909447,3412.7,3412.6,48.86637557]
[1735801216271,3.32909447,3412.7,3412.6,50.12051119]
[1735801216464,3.32909447,3412.7,3412.6,50.31998822]
[1735801216665,0.29334,3413.5,3413.3,0.29335]
[1735801216861,0.29334,3413.5,3413.4,1.41279035]
[1735801217056,0.29334,3413.5,3413.4,2.16496414]
[1735801217262,0.29334,3413.5,3413.4,1.87161414]
[1735801218268,0.29334,3413.5,3413.4,1.57782076]
[1735801219167,8.04838385,3414.3,3413.4,4.15601016]
[1735801219463,0.29331,3413.9,3413.7,3.50112]
[1735801219671,0.29331,3413.9,3413.8,0.62617792]
[1735801219963,0.2933,3414.0,3413.8,1.95652884]
[1735801220167,0.2933,3414.0,3413.9,1.07875801]
[1735801222268,0.29329,3414.1,3413.9,1.37205801]
[1735801222467,0.29329,3414.1,3414.0,1.07875801]
[1735801222768,0.29329,3414.1,3414.0,0.61945711]
[1735801222963,0.29329,3414.1,3414.0,1.0780505]
[1735801224371,0.29329,3414.1,3414.0,0.45859339]
[1735801224569,2.28686936,3414.2,3413.7,3.2078]
[1735801224870,0.29334,3413.5,3413.4,1.139]
[1735801225073,0.29334,3413.5,3413.4,1.75845171]
[1735801225273,0.29334,3413.5,3413.4,2.21714902]
[1735801225768,0.29334,3413.5,3413.4,2.21712634]
[1735801225973,0.29334,3413.5,3413.4,1.85017908]
[1735801226269,0.29334,3413.5,3413.4,2.21712131]
[1735801228873,0.29334,3413.5,3413.4,2.21711179]
[1735801231779,0.29334,3413.5,3413.4,1.59768688]
[1735801231974,0.29334,3413.5,3413.4,2.21712011]
[1735801232381,0.29334,3413.5,3413.4,1.59768688]
[1735801232677,0.29334,3413.5,3413.4,2.2171573]
[1735801234871,0.29334,3413.5,3413.4,1.85021816]
[1735801235072,0.29334,3413.5,3413.4,2.51050379]
[1735801235375,0.29334,3413.6,3413.5,0.29334]
[1735801235574,0.29334,3413.6,3413.5,1.37149379]
[1735801235776,0.4605,3413.7,3413.6,0.29333]
[1735801235977,0.4605,3413.7,3413.6,1.37148379]
[1735801236375,5.49466936,3414.5,3413.6,1.07815379]
[1735801236578,0.29328,3414.3,3414.1,3.50108]
[1735801236777,0.29328,3414.3,3414.2,0.09711135]
[1735801236976,0.29328,3414.3,3414.2,0.55579823]
[1735801237778,0.29328,3414.3,3414.2,1.07798857]
[1735801237979,0.29328,3414.3,3414.2,1.0778926]
[1735801238281,0.29328,3414.3,3414.2,1.66485384]
[1735801238483,0.29328,3414.3,3414.2,2.80285384]
[1735801239485,0.29328,3414.3,3414.2,2.2158926]
[1735801239884,0.29328,3414.3,3414.2,2.0605832]
[1735801240183,0.29332,3413.8,3413.7,4.3458]
[1735801240383,0.29332,3413.8,3413.7,4.93282897]
[1735801240881,0.29332,3413.8,3413.7,4.93285865]
[1735801241481,0.29332,3413.8,3413.7,4.93287031]
[1735801243190,0.29332,3413.8,3413.7,4.3458]
[1735801243477,0.29332,3413.8,3413.7,5.66669546]
[1735801244187,0.29332,3413.8,3413.7,4.5286942]
[1735801244382,0.75542,3413.8,3413.7,3.79486409]
[1735801244580,0.75542,3413.8,3413.7,4.5287124]
[1735801245785,0.75542,3413.8,3413.7,3.79486409]
[1735801246180,0.75542,3413.8,3413.7,3.2078]
[1735801248188,0.75542,3413.8,3413.7,2.5077]
[1735801248687,0.29338,3413.1,3413.0,0.29338]
[1735801248883,0.29338,3413.1,3413.0,0.88053437]
[1735801249279,0.29338,3413.1,3413.0,1.61448716]
[1735801249481,2.28686936,3413.6,3413.0,1.32110716]
[1735801249679,3.2078,3413.7,3413.1,0.88052437]
[1735801249885,0.29337,3413.3,3413.2,0.29337]
[1735801250181,0.29334,3413.6,3413.4,0.29334]
[1735801250491,0.29334,3413.6,3413.5,0.88515831]
[1735801251294,0.29334,3413.6,3413.5,0.15120552]
[1735801252181,0.29334,3413.6,3413.5,0.60245853]
[1735801252386,0.29333,3413.6,3413.5,0.60248203]
[1735801252690,0.29333,3413.6,3413.5,0.90690719]
[1735801252993,0.29333,3413.6,3413.5,0.90455151]
[1735801253780,0.29333,3413.6,3413.5,0.81246794]
[1735801253986,0.29333,3413.6,3413.5,1.06316042]
[1735801254588,2.58019936,3413.6,3413.5,0.70633719]
[1735801254995,7.17768561,3413.6,3413.5,0.55204888]
[1735801256193,7.17768561,3413.6,3413.5,0.55204642]
[1735801256194,8.32261259,3413.6,3413.5,0.55204642]
[1735801257795,8.32261259,3413.6,3412.9,3.2078]
[1735801257796,0.29339,3413.0,3412.9,3.2078]
[1735801258086,0.29339,3413.0,3412.9,3.71882563]
[1735801258293,0.29339,3413.0,3412.9,0.52128506]
[1735801259293,0.29339,3413.0,3412.9,0.15427352]
[1735801259494,0.29341,3412.7,3412.6,0.4258]
[1735801259798,0.29341,3412.7,3412.6,0.94115283]
[1735801261200,0.29341,3412.7,3412.6,0.57971287]
[1735801261698,4.90330591,3412.7,3412.6,0.57789003]
[1735801261991,4.90330591,3412.7,3412.6,0.93910386]
[1735801262197,4.60989591,3412.7,3412.6,1.23252386]
[1735801262696,0.2934,3412.8,3412.6,1.23252386]
[1735801262897,0.2934,3412.8,3412.7,0.80671386]
[1735801263192,5.76007844,3413.0,3412.7,0.51330386]
[1735801263391,6.05346844,3413.0,3412.8,0.51313992]
[1735801263590,0.29339,3413.0,3412.9,0.44539064]
[1735801263793,0.29339,3413.0,3412.9,0.15200064]
[1735801264100,7.35185844,3413.2,3413.0,0.29338]
[1735801264291,7.35185844,3413.2,3413.1,0.4414]
[1735801264492,1.59178,3413.2,3413.1,0.4414]
[1735801266194,0.29338,3413.2,3413.1,0.4414]
[1735801269096,0.29338,3413.2,3413.1,0.59317175]
[1735801269901,0.29338,3413.2,3413.1,1.13969267]
[1735801270598,0.29338,3413.2,3413.1,1.13976315]
[1735801271503,0.29338,3413.2,3413.1,1.50113471]
[1735801271698,0.29338,3413.2,3413.1,1.79451471]
[1735801271906,0.29338,3413.2,3413.1,1.50113471]
[1735801273298,0.29338,3413.2,3413.1,1.79451471]
[1735801273499,0.29338,3413.2,3413.1,1.54784046]
[1735801273699,0.29338,3413.2,3413.1,1.50118092]
[1735801275100,0.29338,3413.2,3413.1,1.13980936]
[1735801275404,3.50118,3413.2,3413.1,0.9879656]
[1735801275602,3.50118,3413.2,3413.1,1.13994523]
[1735801275802,3.50118,3413.2,3413.1,0.9879656]
[1735801276008,9.26125844,3413.2,3413.1,1.13992747]
[1735801276707,6.05345844,3413.2,3413.1,1.50166326]
[1735801276904,0.29338,3413.2,3413.1,1.50166326]
[1735801277406,0.72858,3413.2,3413.1,1.50166326]
[1735801277607,0.29338,3413.2,3413.1,1.50166326]
[1735801278907,4.89966267,3413.2,3413.1,1.50166326]
[1735801279808,4.89966267,3413.2,3413.1,1.50166141]
[1735801280206,4.89966267,3413.2,3413.1,1.50165047]
[1735801281711,4.89966267,3413.2,3413.1,1.06025047]
[1735801282008,8.10746267,3413.2,3413.1,1.06025047]
[1735801282209,8.10746267,3413.2,3413.1,0.6985797]
[1735801282608,4.89966267,3413.2,3413.1,0.69868275]
[1735801283703,4.89966267,3413.2,3413.1,1.05132252]
[1735801283911,4.89966267,3413.2,3413.1,0.69868275]
[1735801284312,4.89966267,3413.2,3413.1,1.0514124]
[1735801284511,4.89966267,3413.2,3413.1,0.69868275]
[1735801285409,4.89966267,3413.2,3413.1,1.05138293]
[1735801285608,4.89966267,3413.2,3413.1,1.05144162]
[1735801285917,0.29338,3413.2,3413.1,0.69873576]
[1735801287412,0.29343,3412.5,3412.4,3.2078]
[1735801287608,0.8823,3413.1,3412.4,4.00519955]
[1735801287814,0.29341,3412.8,3412.7,0.29341]
[1735801288005,0.29341,3412.8,3412.7,0.64620955]
[1735801288411,0.29341,3412.8,3412.7,1.23342885]
[1735801288611,0.29341,3412.8,3412.7,1.24764128]
[1735801288915,0.29341,3412.8,3412.7,0.95423128]
[1735801289507,4.61185093,3412.9,3412.7,0.95423128]
[1735801289815,4.61185093,3412.9,3412.8,1.24764128]
[1735801290015,4.90525093,3412.9,3412.8,1.24764128]
[1735801290814,4.61185093,3412.9,3412.8,1.24764128]
[1735801291018,4.90525093,3412.9,3412.8,0.9541991]
[1735801291809,4.90525093,3412.9,3412.8,1.35336766]
[1735801292013,4.90525093,3412.9,3412.8,2.08736764]
[1735801292515,0.2934,3412.9,3412.8,2.08736764]
[1735801293620,0.2934,3412.9,3412.8,1.51914139]
[1735801294011,0.7377,3412.9,3412.8,0.35514141]
[1735801294714,0.7377,3412.9,3412.8,0.35517345]
[1735801294715,0.4443,3412.9,3412.8,0.35517345]
[1735801295017,0.7377,3412.9,3412.8,0.35517345]
[1735801297712,0.29342,3412.6,3412.5,0.4347]
[1735801298019,0.29342,3412.6,3412.5,1.65147967]
[1735801298320,0.29342,3412.6,3412.5,1.65141484]
[1735801298521,0.29342,3412.6,3412.5,1.08323955]
[1735801299316,0.72792,3412.6,3412.5,1.17499997]
[1735801299520,0.72792,3412.6,3412.5,1.63094689]
[1735801300119,0.72792,3412.6,3412.5,1.6263275]
[1735801300317,1.16782,3412.6,3412.5,1.6263275]
[1735801300920,1.16782,3412.6,3412.5,1.62632995]
[1735801301120,1.16782,3412.6,3412.5,1.33289995]
[1735801302619,6.93893534,3412.6,3412.5,1.33289995]
[1735801303721,6.93893534,3412.6,3412.5,0.89819995]
[1735801303923,6.93893534,3412.6,3412.5,0.54770988]
[1735801304317,6.93893534,3412.6,3412.5,0.45594692]
[1735801304825,1.16782,3412.6,3412.5,0.45594692]
[1735801307017,0.72792,3412.6,3412.5,0.45594692]
[1735801307217,0.72792,3412.6,3412.5,0.90046427]
[1735801307416,0.72792,3412.6,3412.5,1.63347462]
[1735801308522,5.34197652,3412.6,3412.5,2.2207301]
[1735801309024,4.90747652,3412.6,3412.5,2.2207301]
[1735801309427,0.29342,3412.6,3412.5,2.2207301]
[1735801309626,5.76757065,3412.7,3412.5,2.2207301]
[1735801309926,6.06098065,3412.7,3412.6,0.4444977]
[1735801310223,6.06098065,3412.7,3412.6,0.90044462]
[1735801310421,5.76757065,3412.8,3412.6,0.90044462]
[1735801310623,5.76757065,3412.8,3412.7,0.7379077]
[1735801310823,5.76757065,3412.8,3412.7,1.15671]
[1735801311117,5.76757065,3412.8,3412.7,1.74388507]
[1735801311321,5.76757065,3412.8,3412.7,2.20261559]
[1735801311525,5.76757065,3412.8,3412.7,2.65793872]
[1735801311720,0.29338,3413.1,3412.7,2.36452872]
[1735801311721,4.61317762,3413.0,3412.7,2.36452872]
[1735801311921,4.61317762,3413.0,3412.9,1.32603034]
[1735801312118,4.61317762,3413.0,3412.9,2.37193593]
[1735801312319,4.61317762,3413.0,3412.9,1.77570559]
[1735801312515,4.61317762,3413.0,3412.9,2.23102872]
[1735801312715,4.90656762,3413.0,3412.9,2.23104824]
[1735801312919,4.90656762,3413.0,3412.9,2.96503078]
[1735801314127,4.90656762,3413.0,3412.9,2.96503175]
[1735801314827,4.90656762,3413.0,3412.9,2.23104921]
[1735801315835,4.90656762,3413.0,3412.9,1.27687094]
[1735801316129,4.61317762,3413.0,3412.9,2.2310397]
[1735801316629,4.90656762,3413.0,3412.9,2.2310397]
[1735801317035,4.61317762,3413.0,3412.9,2.2310397]
[1735801317728,4.90656762,3413.0,3412.9,2.2310397]
[1735801318325,4.90656762,3413.0,3412.9,2.12918784]
[1735801318528,4.90656762,3413.0,3412.9,1.92753365]
[1735801319427,4.90656762,3413.0,3412.9,1.63997075]
[1735801319825,0.29339,3413.0,3412.9,2.22104383]
[1735801320328,0.29339,3413.0,3412.9,1.83589802]
[1735801320527,0.29339,3413.0,3412.9,2.12929802]
[1735801320733,0.29339,3413.0,3412.9,1.18512313]
[1735801321932,0.29338,3413.1,3413.0,0.29338]
[1735801322126,0.29338,3413.1,3413.0,0.74870313]
[1735801322531,6.06095065,3413.2,3413.1,0.29338]
[1735801322731,5.76757065,3413.2,3413.1,0.29338]
[1735801322926,5.76757065,3413.2,3413.1,3.95650313]
[1735801323532,4.61280262,3413.3,3413.1,3.66312313]
[1735801323833,4.61280262,3413.3,3413.2,1.62489313]
[1735801324535,4.90615262,3413.5,3413.4,0.29335]
[1735801325028,4.90615262,3413.5,3413.4,0.74867313]
[1735801325430,4.90615262,3413.5,3413.4,0.29335]
[1735801325630,4.61280262,3413.5,3413.4,0.29335]
[1735801326033,4.61280262,3413.5,3413.4,0.7489217]
[1735801326539,4.61280262,3413.6,3413.5,0.29335]
[1735801327132,4.61280262,3413.6,3413.5,0.7489217]
[1735801327530,4.90613262,3413.7,3413.5,0.4555717]
[1735801327730,4.90613262,3413.7,3413.6,0.29334]
[1735801328737,0.29333,3413.7,3413.6,0.29334]
[1735801329333,0.29333,3413.7,3413.5,0.29334]
[1735801329535,0.29333,3413.7,3413.6,0.29334]
[1735801330440,0.29333,3413.7,3413.3,0.4387]
[1735801330441,2.28721563,3413.7,3413.3,0.4387]
[1735801330737,2.28721563,3413.7,3413.3,1.5767]
[1735801330738,0.29335,3413.4,3413.3,1.5767]
[1735801330937,0.29335,3413.4,3413.3,2.0318119]
[1735801331642,0.29335,3413.4,3413.3,1.5767]
[1735801332638,0.29335,3413.4,3413.3,1.87006]
[1735801333740,0.29335,3413.4,3413.3,2.32518329]
[1735801334239,4.90615262,3413.6,3413.5,0.29335]
[1735801334744,4.61280262,3413.6,3413.3,1.5767]
[1735801334939,0.29335,3413.5,3413.4,0.7485521]
[1735801336845,0.29335,3413.5,3413.4,0.4552021]
[1735801337236,0.29335,3413.4,3413.3,1.87006]
[1735801337432,0.72205,3413.4,3413.3,2.32561522]
[1735801338137,0.72205,3413.4,3413.3,2.03225522]
[1735801338338,0.72205,3413.4,3413.3,1.59355522]
[1735801340147,0.72205,3413.4,3413.3,1.88691522]
[1735801343441,0.4287,3413.4,3413.3,1.88691522]
[1735801343637,4.61280262,3413.7,3413.3,1.59355522]
[1735801343638,0.29335,3413.5,3413.3,1.59355522]
[1735801343843,0.29335,3413.5,3413.4,0.29335]
[1735801344044,0.29335,3413.5,3413.4,1.18880522]
[1735801345940,0.29335,3413.5,3413.4,0.89545522]
[1735801346742,0.29335,3413.5,3413.4,1.18880522]
[1735801347940,0.29334,3413.6,3413.5,0.29334]
[1735801348343,0.29334,3413.6,3413.5,0.74889522]
[1735801350142,4.90614262,3413.6,3413.5,0.74889522]
[1735801350346,5.9381874,3413.6,3413.5,0.74889522]
[1735801351354,5.9381874,3413.6,3413.5,0.45555522]
[1735801351949,5.9381874,3413.6,3413.5,0.74890522]
[1735801353752,1.32538478,3413.6,3413.5,0.45555522]
[1735801354757,7.09295543,3413.6,3413.5,0.45555522]
[1735801355359,7.09295543,3413.6,3413.5,0.74890522]
[1735801357057,1.32538478,3413.6,3413.5,0.74890522]
[1735801358754,1.32538478,3413.6,3413.5,0.45555522]
[1735801358955,7.09462912,3413.6,3413.5,0.45555522]
[1735801360358,6.80128912,3413.6,3413.1,3.2078]
[1735801360554,1.32541478,3413.2,3413.1,3.2078]
[1735801360755,1.32541478,3413.2,3413.1,3.66438654]
[1735801360957,7.09465912,3413.2,3413.1,3.66438654]
[1735801361155,7.09465912,3413.2,3413.1,3.2078]
[1735801361454,7.09465912,3413.2,3413.1,3.66437684]
[1735801361858,7.56015912,3413.2,3413.1,3.66437684]
[1735801364065,7.56015912,3413.2,3413.1,0.45657684]
[1735801365358,1.79091478,3413.2,3413.1,0.45657684]
[1735801375767,1.32541478,3413.2,3413.1,0.45657684]
[1735801376068,7.09473991,3413.2,3413.1,0.45657684]
[1735801377062,0.2934,3412.9,3412.8,1.138]
[1735801377266,0.2934,3412.9,3412.8,1.59615811]
[1735801377665,1.1791,3412.9,3412.8,1.59615811]
[1735801378268,6.94816754,3412.9,3412.8,1.59615811]
[1735801379964,9.86256754,3412.9,3412.0,4.60164035]
[1735801380170,1.32551478,3412.1,3412.0,4.60164035]
[1735801380570,1.32551478,3412.1,3412.0,5.06000049]
[1735801380770,1.32551478,3412.1,3412.0,4.60164035]
[1735801380970,0.29347,3412.1,3412.0,4.60164035]
[1735801381368,6.06253754,3412.1,3412.0,0.45834076]
[1735801382166,0.29347,3412.1,3412.0,0.45834076]
[1735801382872,4.61273333,3412.2,3412.1,0.29347]
[1735801383070,4.61273333,3412.2,3412.1,1.32551478]
[1735801383263,4.61273333,3412.2,3412.1,1.78385554]
[1735801383668,4.61273333,3412.2,3412.1,1.87561317]
[1735801384271,4.61273333,3412.2,3412.1,42.67561317]
[1735801384575,3.45720498,3412.5,3412.4,0.29344]
[1735801384765,3.45720498,3412.5,3412.4,4.63924]
[1735801385071,3.45720498,3412.5,3412.4,5.09758076]
[1735801385273,3.75063498,3412.5,3412.4,5.54668076]
[1735801385571,0.29343,3412.5,3412.4,5.25324076]
[1735801385771,1.32547478,3412.5,3412.4,2.04544076]
[1735801385976,1.32547478,3412.5,3412.4,0.90744076]
[1735801386370,1.32547478,3412.5,3412.4,0.4491]
[1735801386778,5.93820811,3412.5,3412.4,0.4491]
[1735801388770,5.64477811,3412.5,3411.9,3.2078]
[1735801388975,0.29347,3412.1,3412.0,0.88803605]
[1735801389277,0.29347,3412.1,3412.0,1.18150605]
[1735801391378,3.45542197,3412.2,3412.1,0.29347]
[1735801391578,3.45542197,3412.2,3412.1,0.75160605]
[1735801392474,3.74888197,3412.2,3412.1,0.75160605]
[1735801392679,0.29346,3412.2,3412.1,0.45813605]
[1735801393174,0.73236,3412.2,3412.1,0.45813605]
[1735801393381,0.29347,3412.1,3412.0,0.4299]
[1735801393578,2.24081478,3412.1,3412.0,0.88808334]
[1735801393773,2.24081478,3412.1,3412.0,1.18155334]
[1735801395780,0.29346,3412.2,3412.1,0.29346]
[1735801396287,1.32549478,3412.3,3412.2,0.29346]
[1735801396478,1.32549478,3412.3,3412.2,0.75164334]
[1735801397786,1.32549478,3412.3,3412.2,0.45818334]
[1735801398175,1.03204478,3412.3,3412.0,0.8853]
[1735801398381,0.29346,3412.2,3412.1,0.29346]
[1735801398582,0.29346,3412.2,3412.1,0.75148353]
[1735801398881,0.29346,3412.2,3412.1,0.29346]
[1735801399496,0.29346,3412.2,3412.1,0.75153104]
[1735801399782,0.29346,3412.2,3412.1,0.75153052]
[1735801400182,0.29346,3412.2,3412.1,0.45807052]
[1735801400381,0.29347,3412.1,3412.0,0.4299]
[1735801400587,1.77941478,3412.1,3412.0,0.4299]
[1735801401178,0.29347,3412.0,3411.9,3.2078]
[1735801401486,1.18517,3412.0,3411.9,0.45828677]
[1735801401885,1.18517,3412.0,3411.5,3.2078]
[1735801401886,0.29351,3411.6,3411.5,3.2078]
[1735801402283,1.32555478,3411.6,3411.5,3.66617371]
[1735801402888,1.32555478,3411.6,3411.5,3.2078]
[1735801403882,0.29353,3411.4,3411.3,0.74693]
[1735801404087,1.32557478,3411.4,3411.3,1.20523048]
[1735801404281,1.32557478,3411.4,3411.3,0.75183048]
[1735801404482,1.32557478,3411.4,3411.3,0.45830048]